fUSD/lending_fUSD_20240327
["ID","MTS","AMOUNT","RATE_DAILY","PERIOD"]
[320707982,1711524653419,-2991.54,0.00054794,120]
[320707983,1711524653428,-529.6960929,0.00054794,120]
[320707984,1711524653438,-1518.4,0.00054794,120]
[320707985,1711524653447,-2111.55,0.00054794,120]
[320707986,1711524653457,-524.36,0.00054794,120]
[320707987,1711524653466,-153.72501,0.00054794,7]
[320707988,1711524653475,-1435.36,0.00054794,120]
[320707989,1711524653485,-2249.58,0.00054794,120]
[320707990,1711524653494,-2327.15,0.00054794,120]
[320707991,1711524653503,-151.0,0.00054794,120]
[320707992,1711524653514,-151.0,0.00054794,120]
[320707993,1711524653524,-151.0,0.00054794,120]
[320707994,1711524653534,-500.0,0.00054794,120]
[320707995,1711524653543,-5345.82,0.00054794,120]
[320707996,1711524653552,-542.68,0.00054794,120]
[320707997,1711524653561,-501.90810305,0.00054794,120]
[320707998,1711524653571,-12600.48,0.00054794,120]
[320707999,1711524653579,-1213.16,0.00054794,120]
[320708000,1711524653588,-1848.3080927,0.00054794,120]
[320708001,1711524654079,-207.8219073,0.00054794,120]
[320708002,1711524654088,-151.752167,0.00054794,120]
[320708003,1711524654097,-393.83762182,0.00054794,120]
[320708004,1711524654109,-1120.66502401,0.00054794,120]
[320708005,1711524654122,-683.4462164,0.00054794,120]
[320708006,1711524654152,-635.62113777,0.00054794,120]
[320708007,1711524654161,-1611.78,0.00054794,120]
[320708008,1711524654170,-513.57953081,0.00054794,120]
[320708009,1711524654180,-1872.76,0.00054794,120]
[320708010,1711524654189,-2193.34,0.00054794,120]
[320708011,1711524654198,-599.76,0.00054794,120]
[320708012,1711524654207,-500.0,0.00054794,120]
[320708013,1711524654216,-1362.28,0.00054794,120]
[320708014,1711524654226,-500.0,0.00054794,120]
[320708015,1711524654235,-652.05931155,0.00054794,120]
[320708016,1711524654248,-13980.13068845,0.00054794,120]
[320708017,1711524654259,-22736.25,0.00054794,120]
[320708018,1711524654269,-1266.33,0.00054794,120]
[320708019,1711524654278,-5738.69,0.00054794,120]
[320708020,1711524654287,-1743.87,0.00054794,120]
[320708021,1711524654296,-500.0,0.00054794,120]
[320708022,1711524654306,-1863.29,0.00054794,120]
[320708023,1711524654315,-2595.76,0.00054794,120]
[320708024,1711524654324,-511.53088734,0.00054794,120]
[320708025,1711524654333,-500.0,0.00054794,120]
[320708026,1711524654343,-500.0,0.00054794,120]
[320708027,1711524654354,-520.9907618,0.00054794,120]
[320708028,1711524654367,-2203.84,0.00054794,120]
[320708029,1711524654376,-1717.4,0.00054794,120]
[320708030,1711524654387,-5523.9,0.00054794,120]
[320708031,1711524654396,-500.0,0.00054794,120]
[320708032,1711524654405,-1043.32,0.00054794,120]
[320708033,1711524654415,-500.0,0.00054794,120]
[320708034,1711524654425,-58169.00039789,0.00054794,120]
[320708035,1711524654462,-526.95960211,0.00054794,120]
[320708036,1711524654472,-500.0,0.00054794,120]
[320708037,1711524654480,-3375.32804726,0.00054794,120]
[320708038,1711524654504,-624.27920543,0.00054794,120]
[320708039,1711524654527,-825.72274731,0.00054794,120]
[320708040,1711524654545,-500.0,0.00054794,120]
[320708041,1711524654566,-2761.92,0.00054794,120]
[320708042,1711524654581,-514.12857091,0.00054794,120]
[320708043,1711524654600,-151.0,0.00054794,120]
[320708044,1711524654618,-151.0,0.00054794,120]
[320708045,1711524654635,-151.0,0.00054794,120]
[320708046,1711524654653,-151.0,0.00054794,120]
[320708047,1711524654668,-5405.32,0.00054794,120]
[320708048,1711524654685,-151.0,0.00054794,120]
[320708049,1711524654705,-154.821465,0.00054794,120]
[320708050,1711524654723,-37447.34,0.00054794,120]
[320708051,1711524654735,-500.0,0.00054794,120]
[320708052,1711524654753,-794.45,0.00054794,120]
[320708053,1711524654767,-500.0,0.00054794,120]
[320708054,1711524654784,-500.0,0.00054794,120]
[320708055,1711524654799,-1781.71,0.00054794,120]
[320708056,1711524654813,-4777.55,0.00054794,120]
[320708057,1711524654827,-500.0,0.00054794,120]
[320708058,1711524654841,-500.0,0.00054794,120]
[320708059,1711524654857,-151.0,0.00054794,120]
[320708060,1711524654870,-151.0,0.00054794,120]
[320708061,1711524654886,-151.0,0.00054794,120]
[320708062,1711524654900,-151.0,0.00054794,120]
[320708063,1711524654914,-500.0,0.00054794,120]
[320708064,1711524654929,-500.0,0.00054794,120]
[320708065,1711524654943,-500.0,0.00054794,120]
[320708066,1711524654957,-729.89,0.00054794,120]
[320708067,1711524654973,-5838.51,0.00054794,120]
[320708068,1711524654988,-1985.85,0.00054794,120]
[320708069,1711524655002,-1043.84,0.00054794,120]
[320708070,1711524655017,-5984.88,0.00054794,120]
[320708071,1711524655032,-500.0,0.00054794,120]
[320708072,1711524655047,-10210.2,0.00054794,120]
[320708073,1711524655061,-11287.56,0.00054794,120]
[320708074,1711524655074,-500.0,0.00054794,120]
[320708075,1711524655089,-151.0,0.00054794,120]
[320708076,1711524655103,-151.0,0.00054794,120]
[320708077,1711524655118,-151.0,0.00054794,120]
[320708078,1711524655133,-151.0,0.00054794,120]
[320708079,1711524655149,-500.0,0.00054794,120]
[320708080,1711524655163,-907.4,0.00054794,120]
[320708081,1711524655176,-500.0,0.00054794,120]
[320708082,1711524655191,-505.02083271,0.00054794,120]
[320708083,1711524655205,-151.0,0.00054794,120]
[320708084,1711524655219,-96.30892735,0.00054794,120]
[320708085,1711524655376,-908.63777929,0.00054794,120]
[320708086,1711524656037,-204.0832479,0.000379,10]
[320708087,1711524656094,-155.46952768,0.00037988,2]
[320708088,1711524656114,-184.06830956,0.00051119,120]
[320708089,1711524656138,-1722.63269044,0.00051119,120]
[320708090,1711524656147,-2004.771879,0.00054794,120]
[320708091,1711524656158,-1152.60699601,0.00054794,120]
[320708092,1711524656182,-651.9241,0.00054794,120]
[320708093,1711524656193,-179.29031835,0.00054794,120]
[320708094,1711524656202,-151.0,0.00054794,120]
[320708095,1711524656212,-4630.07,0.00054794,120]
[320708096,1711524656221,-192.940439,0.00054794,120]
[320708097,1711524656230,-500.0,0.00054794,120]
[320708098,1711524656239,-1158.59,0.00054794,120]
[320708099,1711524656248,-1413.04,0.00054794,120]
[320708100,1711524656257,-513.18,0.00054794,7]
[320708101,1711524656267,-151.631502,0.00054794,120]
[320708102,1711524656276,-500.0,0.00054794,120]
[320708103,1711524656285,-500.0,0.00054794,120]
[320708104,1711524656294,-528.42386952,0.00054794,120]
[320708105,1711524656303,-3902.74,0.00054794,120]
[320708106,1711524656312,-514.10088148,0.00054794,120]
[320708107,1711524656321,-10598.39,0.00054794,120]
[320708108,1711524656330,-999.95,0.00054794,120]
[320708109,1711524656349,-731.4,0.00054794,120]
[320708110,1711524656359,-151.0,0.00054794,120]
[320708111,1711524656367,-151.0,0.00054794,120]
[320708112,1711524656377,-151.0,0.00054794,120]
[320708113,1711524656388,-8345.15,0.00054794,120]
[320708114,1711524656398,-151.0,0.00054794,120]
[320708115,1711524656408,-25400.27,0.00054794,120]
[320708116,1711524656418,-500.0,0.00054794,120]
[320708117,1711524656429,-151.0,0.00054794,120]
[320708118,1711524656438,-151.0,0.00054794,120]
[320708119,1711524656447,-752.8,0.00054794,120]
[320708120,1711524656457,-151.0,0.00054794,120]
[320708121,1711524656467,-177.431282,0.00054794,120]
[320708122,1711524656476,-519.18797488,0.00054794,120]
[320708123,1711524656487,-20480.51,0.00054794,120]
[320708124,1711524656496,-4886.07,0.00054794,120]
[320708125,1711524656505,-2790.66,0.00054794,120]
[320708126,1711524656515,-556.60403994,0.00054794,120]
[320708127,1711524656526,-500.0,0.00054794,120]
[320708128,1711524656535,-500.0,0.00054794,120]
[320708129,1711524656545,-500.0,0.00054794,120]
[320708130,1711524656554,-519.98431864,0.00054794,120]
[320708131,1711524656564,-5865.09,0.00054794,120]
[320708132,1711524656573,-666.87,0.00054794,120]
[320708133,1711524656583,-151.0,0.00054794,120]
[320708134,1711524656592,-151.0,0.00054794,120]
[320708135,1711524656601,-180.407349,0.00054794,120]
[320708136,1711524656611,-6182.92,0.00054794,120]
[320708137,1711524656620,-500.0,0.00054794,120]
[320708138,1711524656630,-6578.8,0.00054794,120]
[320708139,1711524656640,-1064.14,0.00054794,120]
[320708140,1711524656649,-2246.67,0.00054794,120]
[320708141,1711524656658,-6279.0,0.00054794,120]
[320708142,1711524656667,-500.0,0.00054794,120]
[320708143,1711524656677,-827.62,0.00054794,120]
[320708144,1711524656685,-8192.74,0.00054794,120]
[320708145,1711524656695,-199.40692968,0.00054794,120]
[320708146,1711524656703,-623.19,0.00054794,120]
[320708147,1711524656712,-652.46,0.00054794,120]
[320708148,1711524656722,-7086.36,0.00054794,120]
[320708149,1711524656731,-500.0,0.00054794,120]
[320708150,1711524656740,-8599.51,0.00054794,120]
[320708151,1711524656750,-987.2,0.00054794,120]
[320708152,1711524656759,-5066.85,0.00054794,120]
[320708153,1711524656768,-5066.85,0.00054794,120]
[320708154,1711524656778,-2217.21,0.00054794,120]
[320708155,1711524656787,-5066.85,0.00054794,120]
[320708156,1711524656796,-5066.85,0.00054794,120]
[320708157,1711524656805,-5066.85,0.00054794,120]
[320708158,1711524656815,-5066.85,0.00054794,120]
[320708159,1711524656824,-5066.85,0.00054794,120]
[320708160,1711524656833,-5066.85,0.00054794,120]
[320708161,1711524656843,-8965.13,0.00054794,120]
[320708162,1711524656852,-5066.85,0.00054794,120]
[320708163,1711524656862,-5066.85,0.00054794,120]
[320708164,1711524656872,-13092.77,0.00054794,120]
[320708165,1711524656884,-5066.85,0.00054794,120]
[320708166,1711524656895,-512.93319276,0.00054794,120]
[320708167,1711524656905,-5066.85,0.00054794,120]
[320708168,1711524656915,-5066.85,0.00054794,120]
[320708169,1711524656925,-5066.85,0.00054794,120]
[320708170,1711524656934,-5066.85,0.00054794,120]
[320708171,1711524656944,-500.0,0.00054794,120]
[320708172,1711524656953,-5066.85,0.00054794,120]
[320708173,1711524656964,-5066.85,0.00054794,120]
[320708174,1711524656973,-5066.85,0.00054794,120]
[320708175,1711524656983,-5066.85,0.00054794,120]
[320708176,1711524656992,-508.76462575,0.00054794,120]
[320708177,1711524657002,-182.296006,0.00054794,120]
[320708178,1711524657011,-1069.55,0.00054794,120]
[320708179,1711524657020,-500.0,0.00054794,120]
[320708180,1711524657029,-5066.85,0.00054794,120]
[320708181,1711524657039,-182.296006,0.00054794,120]
[320708182,1711524657048,-5066.85,0.00054794,120]
[320708183,1711524657058,-182.296006,0.00054794,120]
[320708184,1711524657067,-5066.85,0.00054794,120]
[320708185,1711524657077,-182.296006,0.00054794,120]
[320708186,1711524657087,-5066.85,0.00054794,120]
[320708187,1711524657097,-5067.03,0.00054794,120]
[320708188,1711524657106,-182.296006,0.00054794,120]
[320708189,1711524657116,-182.296006,0.00054794,120]
[320708190,1711524657125,-182.296006,0.00054794,120]
[320708191,1711524657135,-182.296006,0.00054794,120]
[320708192,1711524657145,-771.02,0.00054794,120]
[320708193,1711524657154,-800.87,0.00054794,120]
[320708194,1711524657164,-545.46,0.00054794,120]
[320708195,1711524657173,-3005.31,0.00054794,120]
[320708196,1711524657182,-1114.2,0.00054794,120]
[320708197,1711524657192,-532.73,0.00054794,120]
[320708198,1711524657201,-2591.24,0.00054794,120]
[320708199,1711524657211,-6310.3,0.00054794,21]
[320708200,1711524657220,-204.025157,0.00054794,120]
[320708201,1711524657230,-204.025157,0.00054794,120]
[320708202,1711524657240,-204.025157,0.00054794,120]
[320708203,1711524657249,-204.025157,0.00054794,120]
[320708204,1711524657258,-23638.11,0.00054794,120]
[320708205,1711524657267,-204.025157,0.00054794,120]
[320708206,1711524657277,-204.025157,0.00054794,120]
[320708207,1711524657286,-204.025157,0.00054794,120]
[320708208,1711524657295,-500.0,0.00054794,120]
[320708209,1711524657304,-2203.27,0.00054794,120]
[320708210,1711524657313,-204.025157,0.00054794,120]
[320708211,1711524657322,-450.0,0.00054794,120]
[320708212,1711524657332,-1558.94,0.00054794,120]
[320708213,1711524657341,-587.5,0.00054794,120]
[320708214,1711524657350,-500.0,0.00054794,120]
[320708215,1711524657359,-500.0,0.00054794,120]
[320708216,1711524657369,-500.0,0.00054794,55]
[320708217,1711524657378,-151.0,0.00054794,120]
[320708218,1711524657389,-500.0,0.00054794,120]
[320708219,1711524657397,-151.0,0.00054794,120]
[320708220,1711524657407,-151.0,0.00054794,120]
[320708221,1711524657416,-152.719334,0.00054794,120]
[320708222,1711524657426,-511.68715365,0.00054794,120]
[320708223,1711524657435,-5462.14,0.00054794,120]
[320708224,1711524657445,-2195.51,0.00054794,120]
[320708225,1711524657455,-151.0,0.00054794,120]
[320708226,1711524657465,-507.01072924,0.00054794,120]
[320708227,1711524657474,-151.0,0.00054794,120]
[320708228,1711524657483,-153.979257,0.00054794,120]
[320708229,1711524657493,-2235.66,0.00054794,120]
[320708230,1711524657503,-500.0,0.00054794,2]
[320708231,1711524657512,-500.0,0.00054794,120]
[320708232,1711524657522,-1700.55,0.00054794,120]
[320708233,1711524657531,-501.95172477,0.00054794,2]
[320708234,1711524657540,-367.56289817,0.00054794,120]
[320708235,1711524657549,-959.34,0.00054794,120]
[320708236,1711524657559,-500.0,0.00054794,120]
[320708237,1711524657568,-508.95014968,0.00054794,120]
[320708238,1711524657577,-151.0,0.00054794,120]
[320708239,1711524657586,-500.0,0.00054794,120]
[320708240,1711524657595,-151.0,0.00054794,120]
[320708241,1711524657605,-151.0,0.00054794,120]
[320708242,1711524657614,-500.0,0.00054794,120]
[320708243,1711524657623,-623.54,0.00054794,120]
[320708244,1711524657632,-227.95035,0.00054794,120]
[320708245,1711524657642,-532.52,0.00054794,120]
[320708246,1711524657652,-1868.84,0.00054794,120]
[320708247,1711524657661,-22076.32,0.00054794,120]
[320708248,1711524657670,-1629.97,0.00054794,120]
[320708249,1711524657679,-638.39074566,0.00054794,120]
[320708250,1711524657689,-2939.92,0.00054794,120]
[320708251,1711524657698,-500.0,0.00054794,120]
[320708252,1711524657707,-9991.05,0.00054794,120]
[320708253,1711524657717,-1117.34,0.00054794,120]
[320708254,1711524657726,-516.48888986,0.00054794,120]
[320708255,1711524657736,-1354.94,0.00054794,120]
[320708256,1711524657745,-173.957952,0.00054794,30]
[320708257,1711524657754,-500.0,0.00054794,120]
[320708258,1711524657764,-173.957952,0.00054794,30]
[320708259,1711524657773,-173.957952,0.00054794,30]
[320708260,1711524657783,-151.0,0.00054794,120]
[320708261,1711524657792,-151.0,0.00054794,120]
[320708262,1711524657801,-151.0,0.00054794,120]
[320708263,1711524657810,-173.957952,0.00054794,30]
[320708264,1711524657819,-151.0,0.00054794,120]
[320708265,1711524657828,-500.0,0.00054794,120]
[320708266,1711524657837,-729.36,0.00054794,120]
[320708267,1711524657846,-215.98534488,0.00054794,120]
[320708268,1711524657855,-506.31263657,0.00054794,120]
[320708269,1711524657866,-510.53607595,0.00054794,120]
[320708270,1711524657877,-173.957952,0.00054794,30]
[320708271,1711524657889,-500.0,0.00054794,120]
[320708272,1711524657898,-173.957952,0.00054794,30]
[320708273,1711524657908,-151.0,0.00054794,120]
[320708274,1711524657917,-173.957952,0.00054794,30]
[320708275,1711524657926,-265.755102,0.00054794,120]
[320708276,1711524657937,-1196.06,0.00054794,120]
[320708277,1711524657946,-173.957952,0.00054794,30]
[320708278,1711524657955,-655.93,0.00054794,120]
[320708279,1711524657965,-500.0,0.00054794,120]
[320708280,1711524657974,-500.0,0.00054794,120]
[320708281,1711524657984,-854.646827,0.00054794,120]
[320708282,1711524657993,-854.646827,0.00054794,120]
[320708283,1711524658003,-839.66,0.00054794,120]
[320708284,1711524658012,-854.646827,0.00054794,120]
[320708285,1711524658022,-2185.5,0.00054794,120]
[320708286,1711524658031,-854.646827,0.00054794,120]
[320708287,1711524658041,-151.0,0.00054794,120]
[320708288,1711524658050,-665.0,0.00054794,120]
[320708289,1711524658060,-2707.27,0.00054794,120]
[320708290,1711524658070,-911.3,0.00054794,120]
[320708291,1711524658079,-1194.0,0.00054794,120]
[320708292,1711524658088,-500.0,0.00054794,120]
[320708293,1711524658098,-500.0,0.00054794,120]
[320708294,1711524658107,-854.646827,0.00054794,120]
[320708295,1711524658116,-854.646827,0.00054794,120]
[320708296,1711524658125,-854.646827,0.00054794,120]
[320708297,1711524658135,-854.646827,0.00054794,120]
[320708298,1711524658145,-347.19047868,0.00054794,120]
[320708299,1711524658156,-1294.006513,0.00054794,120]
[320708300,1711524658165,-1294.006513,0.00054794,120]
[320708301,1711524658174,-1294.006513,0.00054794,120]
[320708302,1711524658183,-1294.006513,0.00054794,120]
[320708303,1711524658192,-200.0,0.00054795,120]
[320708304,1711524658202,-800.0,0.00054795,120]
[320708305,1711524658211,-500.0,0.00054795,30]
[320708306,1711524658221,-200.0,0.00054795,30]
[320708307,1711524658230,-500.0,0.00054795,120]
[320708308,1711524658240,-500.0,0.00054795,120]
[320708309,1711524658250,-500.0,0.00054795,120]
[320708310,1711524658260,-500.0,0.00054795,120]
[320708311,1711524658271,-500.0,0.00054795,120]
[320708312,1711524658280,-500.0,0.00054795,120]
[320708313,1711524658290,-500.0,0.00054795,120]
[320708314,1711524658299,-500.0,0.00054795,120]
[320708315,1711524658309,-500.0,0.00054795,120]
[320708316,1711524658318,-500.0,0.00054795,120]
[320708317,1711524658327,-500.0,0.00054795,120]
[320708318,1711524658337,-500.0,0.00054795,120]
[320708319,1711524658346,-500.0,0.00054795,120]
[320708320,1711524658356,-500.0,0.00054795,120]
[320708321,1711524658366,-500.0,0.00054795,120]
[320708322,1711524658376,-500.0,0.00054795,120]
[320708323,1711524658385,-500.0,0.00054795,120]
[320708324,1711524658396,-900.0,0.00054795,120]
[320708325,1711524658405,-1003.890611,0.00054795,120]
[320708326,1711524658414,-500.0,0.00054795,120]
[320708327,1711524658424,-500.0,0.00054795,120]
[320708328,1711524658433,-500.0,0.00054795,120]
[320708329,1711524658443,-500.0,0.00054795,120]
[320708330,1711524658452,-500.0,0.00054795,120]
[320708331,1711524658462,-500.0,0.00054795,120]
[320708332,1711524658472,-500.0,0.00054795,120]
[320708333,1711524658481,-500.0,0.00054795,120]
[320708334,1711524658490,-500.0,0.00054795,120]
[320708335,1711524658500,-500.0,0.00054795,120]
[320708336,1711524658510,-500.0,0.00054795,120]
[320708337,1711524658520,-500.0,0.00054795,120]
[320708338,1711524658530,-500.0,0.00054795,120]
[320708339,1711524658540,-500.0,0.00054795,120]
[320708340,1711524658549,-500.0,0.00054795,120]
[320708341,1711524658559,-500.0,0.00054795,120]
[320708342,1711524658568,-500.0,0.00054795,120]
[320708343,1711524658577,-500.0,0.00054795,120]
[320708344,1711524658587,-500.0,0.00054795,120]
[320708345,1711524658596,-500.0,0.00054795,120]
[320708346,1711524658605,-500.0,0.00054795,120]
[320708347,1711524658615,-500.0,0.00054795,120]
[320708348,1711524658625,-863.0,0.00054795,120]
[320708349,1711524658634,-500.0,0.00054795,120]
[320708350,1711524658644,-500.0,0.00054795,120]
[320708351,1711524658653,-500.0,0.00054795,120]
[320708352,1711524658663,-500.0,0.00054795,120]
[320708353,1711524658672,-500.0,0.00054795,120]
[320708354,1711524658682,-500.0,0.00054795,120]
[320708355,1711524658691,-500.0,0.00054795,120]
[320708356,1711524658700,-500.0,0.00054795,120]
[320708357,1711524658710,-500.0,0.00054795,120]
[320708358,1711524658719,-500.0,0.00054795,120]
[320708359,1711524658728,-500.0,0.00054795,120]
[320708360,1711524658738,-500.0,0.00054795,120]
[320708361,1711524658748,-500.0,0.00054795,120]
[320708362,1711524658758,-500.0,0.00054795,120]
[320708363,1711524658768,-500.0,0.00054795,120]
[320708364,1711524658778,-500.0,0.00054795,120]
[320708365,1711524658787,-500.0,0.00054795,120]
[320708366,1711524658797,-500.0,0.00054795,120]
[320708367,1711524658806,-500.0,0.00054795,120]
[320708368,1711524658815,-500.0,0.00054795,120]
[320708369,1711524658825,-500.0,0.00054795,120]
[320708370,1711524658834,-500.0,0.00054795,120]
[320708371,1711524658843,-500.0,0.00054795,120]
[320708372,1711524658852,-500.0,0.00054795,120]
[320708373,1711524658862,-500.0,0.00054795,120]
[320708374,1711524658873,-500.0,0.00054795,120]
[320708375,1711524658885,-500.0,0.00054795,120]
[320708376,1711524658895,-500.0,0.00054795,120]
[320708377,1711524658905,-500.0,0.00054795,120]
[320708378,1711524658915,-500.0,0.00054795,120]
[320708379,1711524658924,-500.0,0.00054795,120]
[320708380,1711524658934,-500.0,0.00054795,120]
[320708381,1711524658944,-500.0,0.00054795,120]
[320708382,1711524658955,-500.0,0.00054795,120]
[320708383,1711524658965,-500.0,0.00054795,120]
[320708384,1711524658975,-500.0,0.00054795,120]
[320708385,1711524658984,-500.0,0.00054795,120]
[320708386,1711524658993,-500.0,0.00054795,120]
[320708387,1711524659003,-500.0,0.00054795,120]
[320708388,1711524659013,-500.0,0.00054795,120]
[320708389,1711524659023,-500.0,0.00054795,120]
[320708390,1711524659032,-500.0,0.00054795,120]
[320708391,1711524659042,-500.0,0.00054795,120]
[320708392,1711524659051,-500.0,0.00054795,120]
[320708393,1711524659061,-500.0,0.00054795,120]
[320708394,1711524659070,-500.0,0.00054795,120]
[320708395,1711524659080,-500.0,0.00054795,120]
[320708396,1711524659089,-500.0,0.00054795,120]
[320708397,1711524659099,-500.0,0.00054795,120]
[320708398,1711524659109,-500.0,0.00054795,120]
[320708399,1711524659119,-500.0,0.00054795,120]
[320708400,1711524659128,-500.0,0.00054795,120]
[320708401,1711524659138,-500.0,0.00054795,120]
[320708402,1711524659147,-500.0,0.00054795,120]
[320708403,1711524659156,-500.0,0.00054795,120]
[320708404,1711524659166,-500.0,0.00054795,120]
[320708405,1711524659175,-500.0,0.00054795,120]
[320708406,1711524659185,-500.0,0.00054795,120]
[320708407,1711524659195,-500.0,0.00054795,120]
[320708408,1711524659350,-500.0,0.00054795,120]
[320708409,1711524659365,-522.0,0.00054795,120]
[320708410,1711524659374,-500.0,0.00054795,120]
[320708411,1711524659385,-500.0,0.00054795,120]
[320708412,1711524659396,-500.0,0.00054795,120]
[320708413,1711524659405,-500.0,0.00054795,120]
[320708414,1711524659416,-542.0,0.00054795,120]
[320708415,1711524659425,-4408.00426294,0.00054795,7]
[320708416,1711524659435,-151.0,0.00054795,7]
[320708417,1711524659444,-151.0,0.00054795,7]
[320708418,1711524659454,-186.788986,0.00054795,120]
[320708419,1711524659463,-186.788986,0.00054795,120]
[320708420,1711524659473,-151.0,0.00054795,120]
[320708421,1711524659482,-151.0,0.00054795,120]
[320708422,1711524659493,-151.0,0.00054795,120]
[320708423,1711524659503,-196.167964,0.00054795,14]
[320708424,1711524659514,-196.167964,0.00054795,14]
[320708425,1711524659523,-178.25786,0.00054795,120]
[320708426,1711524659533,-178.25786,0.00054795,120]
[320708427,1711524659543,-151.64164,0.00054795,120]
[320708428,1711524659553,-151.64164,0.00054795,120]
[320708429,1711524659563,-491.324185,0.00054795,30]
[320708430,1711524659575,-491.324185,0.00054795,30]
[320708431,1711524659584,-153.193052,0.00054795,120]
[320708432,1711524659593,-542.767787,0.00054795,120]
[320708433,1711524659604,-542.767787,0.00054795,120]
[320708434,1711524659615,-1253.021096,0.00054795,120]
[320708435,1711524659625,-1253.021096,0.00054795,120]
[320708436,1711524659634,-151.0,0.00054795,120]
[320708437,1711524659645,-151.0,0.00054795,120]
[320708438,1711524659654,-449.895944,0.00054795,120]
[320708439,1711524659663,-449.895944,0.00054795,120]
[320708440,1711524659672,-218.726235,0.00054795,120]
[320708441,1711524659682,-218.726235,0.00054795,120]
[320708442,1711524659691,-1200.620511,0.00054795,120]
[320708443,1711524659701,-540.245892,0.00054795,120]
[320708444,1711524659710,-1200.620511,0.00054795,120]
[320708445,1711524659720,-540.245892,0.00054795,120]
[320708446,1711524659729,-151.0,0.00054795,120]
[320708447,1711524659739,-151.0,0.00054795,7]
[320708448,1711524659749,-523.683972,0.00054795,120]
[320708449,1711524659759,-523.683972,0.00054795,120]
[320708450,1711524659769,-151.0,0.00054795,60]
[320708451,1711524659780,-151.0,0.00054795,60]
[320708452,1711524659790,-177.051292,0.00054795,120]
[320708453,1711524659800,-877.388448,0.00054795,120]
[320708454,1711524659811,-177.051292,0.00054795,120]
[320708455,1711524659821,-877.388448,0.00054795,120]
[320708456,1711524659831,-192.42476,0.00054795,120]
[320708457,1711524659841,-192.42476,0.00054795,120]
[320708458,1711524659851,-182.384651,0.00054795,120]
[320708459,1711524659861,-182.384651,0.00054795,120]
[320708460,1711524659871,-151.032716,0.00054798,105]
[320708461,1711524659881,-4000.0,0.000548,120]
[320708462,1711524659898,-1083.13355601,0.000549,30]
[320708463,1711524659908,-349.63,0.000549,14]
[320708464,1711524659917,-16211.36413197,0.000549,30]
[320708465,1711524659927,-269.18,0.000549,30]
[320708466,1711524659937,-567.0,0.00054932,120]
[320708467,1711524659948,-207.40979895,0.00054968,102]
[320708468,1711524659957,-1698.97773378,0.00055,2]
[320708469,1711524659967,-10000.0,0.00055,120]
[320708470,1711524659978,-625.17886475,0.00055,5]
[320708471,1711524659989,-1560.0,0.00055,120]
[320708472,1711524659999,-163.81991671,0.00055,100]
[320708473,1711524660009,-416.61513608,0.00055,60]
[320708474,1711524660019,-353.45544297,0.00055,120]
[320708475,1711524660029,-2000.0,0.00055,120]
[320708476,1711524660039,-17560.53763991,0.00055,120]
[320708477,1711524660050,-302.0,0.00055062,4]
[320708478,1711524660061,-229.882087,0.00055067,120]
[320708479,1711524660071,-353.081644,0.00055067,120]
[320708480,1711524660082,-353.081644,0.00055067,120]
[320708481,1711524660092,-300.402209,0.00055067,120]